bitfinex/quotes_ETHUSD_20250810
["timestamp","ask_amount","ask_price","bid_price","bid_amount"]
[1754823915910,4.265,4193.6,4193.5,0.8896]
[1754823916089,4.265,4193.6,4193.5,1.03356]
[1754823916609,3.665,4193.6,4193.5,1.03356]
[1754823917305,3.665,4193.6,4193.5,0.8896]
[1754823917500,3.662,4193.6,4193.5,0.8896]
[1754823918512,0.1192,4193.7,4193.5,0.8896]
[1754823918681,0.1192,4193.7,4193.2,0.55]
[1754823919079,3.661,4193.6,4193.2,0.55]
[1754823919410,3.661,4193.6,4193.4,0.55]
[1754823919588,3.661,4193.6,4193.2,0.55]
[1754823919908,3.661,4193.6,4189.0,10.24332892]
[1754823919909,3.661,4193.5,4192.7,0.4546]
[1754823920205,0.1192,4192.9,4192.7,0.4546]
[1754823920506,3.661,4192.8,4192.7,0.9266]
[1754823921808,3.663,4192.8,4192.7,0.9266]
[1754823923211,3.663,4192.8,4192.4,0.55]
[1754823923405,3.663,4192.8,4192.5,0.9266]
[1754823923717,3.663,4192.8,4192.6,0.55]
[1754823924415,3.663,4192.8,4192.7,0.9266]
[1754823924609,3.66,4192.8,4192.7,0.9266]
[1754823926490,3.66,4192.8,4192.4,0.55]
[1754823927210,3.66,4192.8,4192.6,0.55]
[1754823927413,3.66,4192.8,4192.6,1.022]
[1754823927601,3.66,4192.8,4192.7,0.9266]
[1754823927797,3.658,4192.8,4192.7,0.9266]
[1754823928793,0.1192,4192.9,4192.7,0.9266]
[1754823929190,3.657,4192.8,4192.7,0.9266]
[1754823929615,0.1192,4192.9,4192.7,0.9266]
[1754823929813,3.657,4192.8,4192.4,0.55]
[1754823930013,0.1192,4192.9,4192.4,0.55]
[1754823930208,3.657,4192.8,4192.4,0.55]
[1754823930424,3.657,4192.8,4192.3,0.1192]
[1754823930425,0.1192,4192.9,4192.6,0.55]
[1754823930626,3.657,4192.7,4192.6,0.55]
[1754823931397,3.657,4192.7,4192.4,0.55]
[1754823931917,3.657,4192.7,4192.6,0.55]
[1754823932115,0.1192,4192.9,4192.6,0.55]
[1754823932415,3.657,4192.8,4192.7,0.9266]
[1754823932932,3.657,4192.8,4192.4,1.4766]
[1754823933129,3.657,4192.8,4192.4,0.55]
[1754823933433,3.657,4192.8,4192.6,0.55]
[1754823933726,3.657,4192.8,4192.4,0.55]
[1754823934729,0.9088,4192.7,4192.1,0.001]
[1754823934917,0.1192,4192.5,4192.1,0.001]
[1754823935102,0.1192,4192.2,4192.1,0.001]
[1754823935302,3.7762,4192.2,4192.1,0.001]
[1754823935826,4.685,4192.2,4192.1,0.001]
[1754823936033,7.685,4192.2,4192.1,0.001]
[1754823936206,8.19096847,4192.2,4192.1,0.001]
[1754823936407,4.028,4192.2,4192.1,0.001]
[1754823936621,7.686,4192.2,4192.1,0.001]
[1754823936828,4.028,4192.2,4192.1,0.001]
[1754823937030,7.686,4192.2,4192.1,0.001]
[1754823937724,4.028,4192.2,4192.1,0.001]
[1754823938049,7.686,4192.2,4192.1,0.001]
[1754823938231,8.560656,4192.2,4192.1,0.001]
[1754823938434,8.05550011,4192.2,4192.1,0.001]
[1754823938833,8.99099669,4192.2,4192.1,0.001]
[1754823939139,8.44099669,4192.2,4192.1,0.001]
[1754823939706,4.78299669,4192.2,4192.1,0.001]
[1754823939899,7.95330011,4192.2,4192.1,0.001]
[1754823940118,8.45799669,4192.2,4192.1,0.001]
[1754823942221,9.00799669,4192.2,4192.1,0.001]
[1754823942402,13.00799669,4192.2,4192.1,0.001]
[1754823942609,3.0,4192.1,4190.6,0.04]
[1754823942932,0.9088,4192.1,4190.6,0.4946]
[1754823943232,0.9088,4192.0,4191.6,0.041]
[1754823943530,4.5828,4191.9,4191.6,0.041]
[1754823943734,9.403,4191.8,4191.6,0.041]
[1754823943933,9.403,4191.8,4191.6,0.04]
[1754823945439,10.3118,4191.8,4191.6,0.04]
[1754823945813,9.403,4191.8,4191.6,0.04]
[1754823946019,5.729,4191.8,4191.6,0.04]
[1754823946243,9.402,4191.8,4191.6,0.04]
[1754823947310,5.729,4191.8,4191.6,0.04]
[1754823947541,9.402,4191.8,4191.7,0.916]
[1754823948238,9.402,4191.8,4191.7,0.001]
[1754823949018,9.5212,4191.8,4191.7,0.001]
[1754823949214,5.8482,4191.8,4191.7,0.001]
[1754823949420,9.5202,4191.8,4191.7,0.916]
[1754823951014,5.8482,4191.8,4191.7,0.916]
[1754823951215,9.5192,4191.8,4191.7,0.916]
[1754823951725,9.5192,4191.8,4191.7,0.4546]
[1754823952127,9.5192,4191.8,4191.7,0.001]
[1754823953958,5.8482,4191.8,4191.7,0.001]
[1754823954120,9.5172,4191.8,4191.7,0.916]
[1754823954856,9.5172,4191.8,4191.7,1.466]
[1754823955018,5.729,4191.8,4191.7,1.6166]
[1754823955220,9.397,4191.8,4191.7,1.6166]
[1754823955419,9.398,4191.8,4191.7,1.6166]
[1754823957312,9.398,4191.8,4191.7,0.916]
[1754823958417,9.398,4191.8,4191.7,0.001]
[1754823961318,5.729,4191.8,4191.7,1.466]
[1754823961550,9.396,4191.8,4191.7,1.466]
[1754823962440,5.729,4191.8,4191.7,1.466]
[1754823962764,9.395,4191.8,4191.7,1.62852]
[1754823963624,5.729,4191.8,4191.7,1.62852]
[1754823963825,9.395,4191.8,4191.7,1.62852]
[1754823964033,5.729,4191.8,4191.7,1.62852]
[1754823964361,3.665,4191.8,4191.7,1.74772]
[1754823964657,0.002,4192.1,4191.7,1.74772]
[1754823964827,0.002,4192.1,4192.0,0.6692]
[1754823965028,3.669,4192.1,4192.0,0.6692]
[1754823965230,0.002,4192.1,4192.0,1.5842]
[1754823965672,3.669,4192.1,4192.0,1.5842]
[1754823967041,0.002,4192.1,4192.0,1.5842]
[1754823967368,3.666,4192.2,4192.1,0.55]
[1754823967570,3.666,4192.2,4192.1,0.4614]
[1754823967771,0.002,4192.6,4192.2,0.55]
[1754823967970,3.666,4192.5,4192.2,0.55]
[1754823968177,3.666,4192.5,4192.4,0.6692]
[1754823968377,3.665,4192.5,4192.4,1.79762]
[1754823968671,3.667,4192.6,4192.4,1.79762]
[1754823968876,3.667,4192.6,4192.4,0.88262]
[1754823969173,2.00539062,4192.6,4192.5,1.465]
[1754823969374,3.667,4193.0,4192.6,0.55]
[1754823969572,0.002,4193.0,4192.6,1.465]
[1754823969878,3.667,4193.0,4192.7,0.6692]
[1754823970184,3.667,4193.0,4192.7,1.5842]
[1754823970391,3.667,4193.0,4192.7,1.74262]
[1754823972276,0.002,4193.0,4192.7,1.74262]
[1754823972482,3.665,4193.0,4192.7,1.74262]
[1754823972661,0.002,4193.0,4192.7,1.74262]
[1754823973248,0.002,4193.0,4192.7,1.62342]
[1754823973581,0.002,4193.0,4192.7,1.74262]
[1754823973961,0.002,4193.0,4192.7,1.76647097]
[1754823976979,0.002,4193.0,4192.8,0.55]
[1754823977182,0.002,4193.0,4192.9,0.76004154]
[1754823977681,0.002,4193.0,4192.9,1.22724154]
[1754823977984,0.002,4193.0,4192.9,1.69224154]
[1754823978483,0.002,4193.7,4193.0,0.55]
[1754823978785,0.002,4193.7,4193.1,0.0238487]
[1754823978973,0.002,4193.7,4193.2,0.16922404]
[1754823979287,0.002,4193.7,4193.2,1.74684804]
[1754823979477,0.002,4193.7,4193.2,1.86604804]
[1754823980669,0.002,4193.7,4193.3,1.98]
[1754823980871,0.002,4193.7,4193.4,0.02384699]
[1754823981080,0.002,4193.7,4193.6,0.6692]
[1754823981281,0.002,4193.7,4193.6,0.69304586]
[1754823981480,0.002,4193.7,4193.6,1.62524586]
[1754823982883,0.002,4193.7,4193.6,0.69304586]
[1754823983487,0.002,4193.7,4193.6,1.62524586]
[1754823983682,0.002,4193.7,4193.6,1.78777045]
[1754823985623,0.002,4193.7,4193.6,1.76392459]
[1754823986256,0.002,4193.7,4193.6,1.78777045]
[1754823987480,0.002,4193.7,4193.6,0.85557045]
[1754823987985,0.002,4193.7,4193.6,1.78777045]
[1754823988186,0.002,4193.7,4193.6,0.85557045]
[1754823988386,0.002,4193.7,4193.6,0.83172459]
[1754823988563,0.002,4193.7,4193.6,0.85557045]
[1754823988762,0.9184,4193.7,4193.6,0.28172459]
[1754823988963,0.9184,4193.7,4193.6,0.1192]
[1754823992462,0.9184,4193.7,4193.6,0.6692]
[1754823996496,0.9184,4193.7,4193.6,0.55]
[1754823996797,0.002,4193.7,4193.6,0.55]
[1754823996997,0.9184,4193.7,4193.6,0.55]
[1754823997504,0.002,4193.7,4193.6,0.6692]
[1754823999873,0.4634,4193.7,4193.6,0.6692]
[1754824000200,0.9184,4193.7,4193.6,0.6692]
[1754824000401,0.9184,4193.7,4193.6,0.55]
[1754824000635,0.9184,4193.7,4192.6,0.001]
[1754824000636,1.0376,4193.7,4193.1,0.1192]
[1754824000904,0.455,4193.6,4193.1,0.1192]
[1754824001211,0.9164,4193.6,4193.2,0.55]
[1754824001368,0.9164,4193.5,4193.2,0.55]
[1754824001572,0.9164,4193.4,4193.2,0.55]
[1754824001881,1.0356,4193.3,4192.6,0.1202]
[1754824002085,0.9164,4193.2,4192.6,0.001]
[1754824002289,0.1192,4193.0,4192.6,0.001]
[1754824002791,0.9164,4192.9,4192.6,0.001]
[1754824003185,0.1192,4193.0,4192.6,0.001]
[1754824003405,0.9164,4192.8,4192.6,0.001]
[1754824003601,0.1192,4193.0,4192.6,0.001]
[1754824003779,0.4614,4192.8,4192.6,0.001]
[1754824003979,0.1192,4193.0,4192.6,0.001]
[1754824004187,0.5806,4193.0,4192.6,0.001]
[1754824004601,0.4614,4193.0,4192.6,0.001]
[1754824004910,0.9164,4193.5,4192.8,0.55]
[1754824005229,0.9164,4193.4,4192.8,0.55]
[1754824005631,0.1192,4193.5,4192.8,0.55]
[1754824005797,0.9164,4193.3,4192.8,0.55]
[1754824006123,0.9164,4193.2,4192.8,0.55]
[1754824006322,0.1192,4193.5,4192.8,0.55]
[1754824006531,0.9164,4193.1,4192.8,0.55]
[1754824006825,0.9164,4193.0,4192.8,0.55]
[1754824006991,0.9164,4192.9,4192.8,0.55]
[1754824008430,0.1192,4193.5,4192.8,0.55]
[1754824008431,0.9566,4193.3,4192.8,0.55]
[1754824008727,0.9566,4193.2,4192.8,0.55]
[1754824008927,0.4615,4193.1,4192.8,0.55]
[1754824009108,0.4615,4193.1,4192.8,0.551]
[1754824009310,0.4951,4193.2,4192.8,0.551]
[1754824009626,0.4615,4193.2,4192.8,0.551]
[1754824010216,3.7772,4193.5,4192.8,0.551]
[1754824012913,0.1192,4193.5,4192.8,0.551]
[1754824013115,3.658,4193.4,4193.2,0.55]
[1754824013321,4.1195,4193.4,4193.2,0.55]
[1754824013535,0.9566,4193.3,4193.2,0.55]
[1754824014102,0.9566,4193.3,4193.1,0.1192]
[1754824014332,0.9566,4193.2,4192.9,0.55]
[1754824014544,0.9566,4193.1,4192.9,0.55]
[1754824014919,0.4951,4193.3,4192.9,0.55]
[1754824015151,0.9566,4193.2,4192.9,0.55]
[1754824015445,4.6146,4193.1,4192.9,0.55]
[1754824015625,3.658,4193.1,4192.9,0.55]
[1754824015834,0.9566,4193.0,4192.9,0.55]
[1754824018708,3.658,4193.1,4192.9,0.55]
[1754824020109,4.1195,4193.1,4192.9,0.55]
[1754824020306,4.1195,4193.1,4192.8,0.1202]
[1754824020307,3.658,4193.1,4192.8,0.1202]
[1754824020630,1.0758,4193.0,4192.8,0.001]
[1754824021111,0.9566,4192.9,4192.8,0.001]
[1754824024043,4.7338,4192.9,4192.8,0.001]
[1754824024347,1.0758,4192.9,4192.8,0.001]
[1754824024550,4.7338,4192.9,4192.8,0.001]
[1754824024907,1.0758,4192.9,4192.8,0.001]
[1754824025241,4.7338,4192.9,4192.8,0.001]
[1754824026839,1.0758,4192.9,4192.8,0.001]
[1754824027034,3.7772,4192.9,4192.8,0.001]
[1754824028014,0.1192,4192.9,4192.8,0.001]
[1754824028344,3.7772,4192.9,4192.8,0.001]
[1754824030141,4.7338,4192.9,4192.8,0.001]
[1754824030512,1.0758,4192.9,4192.8,0.001]
[1754824030713,0.5807,4192.9,4192.8,0.001]
[1754824030919,4.2387,4192.9,4192.8,0.001]
[1754824031810,3.7772,4192.9,4192.8,0.001]
[1754824032018,4.7338,4192.9,4192.8,0.001]
[1754824033737,3.7772,4192.9,4192.8,0.001]
[1754824033933,4.2387,4192.9,4192.8,0.001]
[1754824034136,4.7338,4192.9,4192.8,0.001]
[1754824035439,1.0758,4192.9,4192.8,0.001]
[1754824035748,0.1192,4192.9,4192.8,0.001]
[1754824035944,3.7772,4192.9,4192.8,0.001]
[1754824036967,0.1192,4192.9,4192.8,0.001]
[1754824037258,0.1192,4193.0,4192.9,0.55]
[1754824037458,3.658,4193.0,4192.9,0.4757]
[1754824037627,0.002,4193.7,4192.9,1.579]
[1754824037829,3.658,4193.6,4193.3,0.55]
[1754824038041,3.658,4193.6,4193.4,0.9098]
[1754824038247,0.002,4193.7,4193.4,0.9098]
[1754824038730,0.002,4193.7,4193.3,0.55]
[1754824039050,0.002,4193.7,4192.8,0.001]
[1754824039051,0.002,4193.7,4193.6,0.55]
[1754824039362,3.66,4193.7,4193.6,0.8175647]
[1754824039521,3.66,4193.7,4193.6,0.6692]
[1754824039924,3.83846399,4193.7,4193.6,0.6692]
[1754824040329,3.83846399,4193.7,4193.1,0.55]
[1754824040549,3.83846399,4193.7,4193.4,0.55]
[1754824041232,0.4293,4193.6,4193.4,0.55]
[1754824041644,4.30106399,4193.7,4193.4,0.55]
[1754824042051,4.73036399,4193.7,4193.4,0.55]
[1754824042254,0.8919,4193.6,4192.8,0.001]
[1754824042563,0.1192,4193.2,4192.8,0.001]
[1754824042730,3.657,4193.1,4192.8,0.001]
[1754824043461,4.0863,4193.1,4192.8,0.001]
[1754824044959,0.8919,4193.0,4192.8,0.001]
[1754824045163,0.1192,4192.9,4192.8,0.001]
[1754824045534,1.0111,4192.9,4192.8,0.001]
[1754824054576,0.5485,4192.9,4192.8,0.001]
[1754824054778,0.1192,4192.9,4192.8,0.001]
[1754824055169,1.0111,4192.9,4192.8,0.001]
[1754824055769,0.5485,4192.9,4192.8,0.001]
[1754824056180,1.0111,4192.9,4192.8,0.001]
[1754824057686,0.5485,4192.9,4192.8,0.001]
[1754824058169,4.2065,4192.9,4192.8,0.001]
[1754824058478,4.6691,4192.9,4192.8,0.001]
[1754824063482,7.6691,4192.9,4192.8,0.001]
[1754824063651,8.17393145,4192.9,4192.8,0.001]
[1754824069366,7.6691,4192.9,4192.8,0.001]
[1754824069573,8.17341556,4192.9,4192.8,0.001]
[1754824076988,8.39266372,4192.9,4192.8,0.001]
[1754824079903,8.41786372,4192.9,4192.8,0.001]
[1754824080586,9.04914675,4192.9,4192.8,0.001]
[1754824082509,11.56014675,4192.9,4192.8,0.001]
[1754824082811,11.23875946,4192.9,4192.8,0.001]
[1754824083113,11.69734645,4192.9,4192.8,0.001]
[1754824085108,49.27734645,4192.9,4192.8,0.001]
[1754824085283,50.54239139,4192.9,4192.8,0.001]
[1754824085484,49.27734645,4192.9,4192.8,0.001]
[1754824086406,2.511,4192.7,4192.6,0.001]
[1754824086582,48.95500205,4192.7,4192.6,0.001]
[1754824086916,49.15914645,4192.7,4192.6,0.001]
[1754824087593,53.15914645,4192.7,4192.6,0.001]
[1754824087787,3.061,4192.4,4192.3,0.001]
[1754824087989,41.33024645,4192.4,4192.3,0.001]
[1754824088227,42.24934645,4192.4,4192.3,0.001]
[1754824088608,46.24934645,4192.4,4192.3,0.001]
[1754824089316,3.0,4192.1,4191.9,0.001]
[1754824089521,47.85493089,4192.0,4191.9,0.001]
[1754824089813,49.15914645,4192.0,4191.9,0.001]
[1754824091118,6.061,4191.9,4191.8,0.001]
[1754824091413,6.061,4191.9,4190.6,0.04]
[1754824091414,3.061,4191.3,4190.2,0.4706]
[1754824091734,6.061,4191.1,4191.0,0.001]
[1754824092030,6.56531556,4191.1,4191.0,0.001]
[1754824092228,4.87160357,4191.1,4191.0,0.001]
[1754824092388,4.22114856,4191.1,4191.0,0.9298]
[1754824092697,7.87914856,4191.1,4191.0,0.001]
[1754824093025,7.16231556,4191.1,4191.0,0.001]
[1754824093190,7.16231556,4191.1,4191.0,0.4592]
[1754824093391,7.16231556,4191.1,4191.0,0.9298]
[1754824094018,3.50431556,4191.1,4191.0,0.9298]
[1754824094221,7.16231556,4191.1,4191.0,0.9298]
[1754824097122,7.34117666,4191.1,4191.0,0.9298]
[1754824097495,7.45731761,4191.1,4191.0,0.9298]
[1754824099203,7.45731761,4191.1,4191.0,0.001]
[1754824099621,7.57651761,4191.1,4191.0,0.001]
[1754824100430,7.57651761,4191.1,4191.0,0.9225]
[1754824101415,7.57651761,4191.1,4191.0,0.4415]
[1754824101741,7.57651761,4191.1,4191.0,0.001]
[1754824101898,10.99771761,4191.1,4191.0,0.001]
[1754824102115,11.54771761,4191.1,4191.0,0.001]
[1754824102536,11.87458439,4191.1,4191.0,0.001]
[1754824102749,42.53480093,4191.1,4191.0,0.001]
[1754824103133,46.53480093,4191.1,4191.0,0.001]
[1754824103856,3.061,4190.7,4190.6,0.001]
[1754824104023,40.51538758,4190.7,4190.6,0.001]
[1754824104358,40.51538758,4190.7,4188.8,0.25]
[1754824104359,2.511,4189.8,4188.8,0.25]
[1754824104639,41.59201226,4189.7,4188.8,0.25]
[1754824104845,43.51024583,4189.7,4188.8,0.25]
[1754824105043,0.55,4189.6,4186.3,0.481]
[1754824105256,0.55,4189.6,4183.2,6.09440994]
[1754824105257,0.62931103,4189.0,4188.0,0.481]
[1754824105416,3.0,4188.8,4188.3,0.481]
[1754824105607,6.668,4188.7,4188.3,0.481]
[1754824105835,7.17231556,4188.7,4188.3,0.481]
[1754824106024,7.17231556,4188.7,4188.0,0.4405]
[1754824106220,3.50431556,4188.7,4183.7,0.1]
[1754824106436,3.50431556,4188.7,4188.1,0.4405]
[1754824106437,3.0,4188.7,4188.1,0.4405]
[1754824106948,6.675,4188.7,4188.1,0.4405]
[1754824107148,7.17931556,4188.7,4184.7,0.02389657]
[1754824107354,8.41638234,4188.7,4187.7,0.4405]
[1754824107553,3.83118234,4188.7,4188.1,0.4405]
[1754824107727,3.83118234,4188.7,4184.4,0.02389828]
[1754824107728,3.0,4188.7,4188.6,0.4805]
[1754824107918,6.675,4188.7,4188.6,0.04]
[1754824108116,6.675,4188.7,4188.6,0.521]
[1754824108314,6.675,4188.7,4188.6,0.9615]
[1754824108315,3.0,4188.7,4188.6,0.9615]
[1754824108521,3.677,4188.7,4188.6,0.9615]
[1754824108976,5.731,4188.9,4188.6,0.9615]
[1754824109247,3.68,4188.8,4188.6,0.9615]
[1754824109451,5.731,4188.9,4188.6,0.9615]
[1754824109452,5.731,4188.9,4188.7,0.9215]
[1754824109664,3.68,4188.8,4188.6,0.04]
[1754824109829,5.731,4188.9,4188.6,0.04]
[1754824110032,3.68,4188.8,4188.6,0.04]
[1754824110228,3.68,4188.8,4188.7,0.9215]
[1754824111773,5.731,4188.9,4188.7,0.9215]
[1754824112057,3.679,4188.8,4188.7,0.9215]
[1754824112263,3.679,4188.8,4188.6,0.04]
[1754824112631,3.679,4188.7,4188.6,0.04]
[1754824113364,3.679,4188.7,4188.6,0.9615]
[1754824114034,5.91271749,4188.9,4188.6,0.9615]
[1754824114446,0.1192,4188.7,4188.6,0.04]
[1754824115061,0.1192,4188.7,4188.6,0.9615]
[1754824115845,3.7952,4188.7,4188.6,0.9625]
[1754824116232,0.1192,4188.7,4188.6,0.94653869]
[1754824116432,3.7972,4188.7,4188.6,0.94653869]
[1754824117045,0.1192,4188.7,4188.6,0.94653869]
[1754824117247,3.7982,4188.7,4188.6,0.94653869]
[1754824117856,0.1192,4188.7,4188.6,0.94653869]
[1754824118376,3.7972,4188.7,4188.6,0.94653869]
[1754824118547,0.1192,4188.7,4188.6,0.94653869]
[1754824118749,3.7962,4188.7,4188.6,0.94653869]
[1754824119064,3.7962,4188.7,4188.6,0.02503869]
[1754824119268,3.7962,4188.7,4188.6,0.94653869]
[1754824123649,0.1192,4188.7,4188.6,0.94653869]
[1754824124049,3.7922,4188.7,4188.6,0.94653869]
[1754824124684,3.7912,4188.7,4188.6,0.94653869]
[1754824125263,0.1192,4188.7,4188.6,0.94653869]
[1754824125468,3.7912,4188.7,4188.6,0.94653869]
[1754824125788,0.1192,4188.7,4188.6,0.94653869]
[1754824126291,3.7902,4188.7,4188.6,0.94653869]
[1754824126458,0.1192,4188.7,4188.6,0.94653869]
[1754824126655,3.7902,4188.7,4188.6,0.94653869]
[1754824127299,0.1192,4188.7,4188.6,0.94653869]
[1754824127461,3.7892,4188.7,4188.6,0.94653869]
[1754824129061,3.7892,4188.7,4188.6,0.02503869]
[1754824129895,0.1192,4188.7,4188.6,0.02503869]
[1754824130190,3.7882,4188.7,4188.6,0.02503869]
[1754824130486,3.7902,4188.7,4188.6,0.02503869]
[1754824131866,0.1192,4188.7,4188.6,0.02503869]
[1754824132092,3.7902,4188.7,4188.6,0.02503869]
[1754824132981,4.2557,4188.7,4188.6,0.02503869]
[1754824134395,4.8557,4188.7,4188.6,0.02503869]
[1754824134566,5.3296,4188.7,4188.6,0.02503869]
[1754824136402,5.83551506,4188.7,4188.6,0.02503869]
[1754824137192,8.83551506,4188.7,4188.6,0.02503869]
[1754824137379,9.05503767,4188.7,4188.6,0.02503869]
[1754824138077,9.05703767,4188.7,4188.6,0.02503869]
[1754824138907,7.89911506,4188.7,4188.6,0.02503869]
[1754824139091,4.89911506,4188.7,4188.6,0.02503869]
[1754824139301,4.3932,4188.7,4188.6,0.02503869]
[1754824139511,4.8991803,4188.7,4188.6,0.02503869]
[1754824139798,1.6926803,4188.7,4188.6,0.02503869]
[1754824140016,4.8577,4188.7,4188.6,0.02503869]
[1754824140318,0.602,4188.7,4188.6,0.94563869]
[1754824140618,0.18171749,4188.9,4188.7,0.55]
[1754824140813,5.733,4189.2,4188.8,0.14956387]
[1754824141021,3.676,4189.1,4188.9,0.4463]
[1754824141187,5.733,4189.2,4189.0,0.55]
[1754824141371,5.733,4189.2,4188.6,0.02503869]
[1754824141372,3.676,4189.1,4188.6,0.47133869]
[1754824141914,3.676,4189.1,4188.7,0.4463]
[1754824142124,5.733,4189.2,4188.8,0.9963]
[1754824142325,5.733,4189.2,4188.9,1.04904387]
[1754824142491,3.679,4189.1,4188.9,0.14764387]
[1754824142691,5.733,4189.2,4189.0,0.9014]
[1754824142889,3.679,4189.1,4188.6,0.02503869]
[1754824143501,3.679,4189.1,4188.8,0.55]
[1754824143690,3.679,4189.1,4188.9,0.9014]
[1754824143890,3.679,4189.1,4189.0,0.4551]
[1754824144400,3.679,4189.1,4188.6,0.02503869]
[1754824144915,0.4739,4189.0,4188.6,0.02503869]
[1754824145108,3.678,4188.9,4188.6,0.02503869]
[1754824145615,0.4739,4188.8,4188.6,0.02503869]
[1754824145802,3.678,4188.7,4188.6,0.02503869]
[1754824147388,4.1519,4188.7,4188.6,0.02503869]
[1754824148207,3.678,4188.7,4188.6,0.02503869]
[1754824148504,3.678,4188.7,4188.6,0.48013869]
[1754824148703,5.91580472,4189.2,4188.6,0.48013869]
[1754824148911,3.676,4189.1,4188.6,0.48013869]
[1754824150226,0.1192,4188.7,4188.6,0.48013869]
[1754824150391,0.1192,4188.7,4188.6,0.02503869]
[1754824150392,3.7942,4188.7,4188.6,0.02503869]
[1754824153892,4.2681,4188.7,4188.6,0.02503869]
[1754824155110,3.7942,4188.7,4188.6,0.02503869]
[1754824156934,3.7892,4188.7,4188.6,0.48013869]
[1754824157133,3.67,4188.7,4188.6,1.47643869]
[1754824157332,3.67,4188.7,4188.6,1.62408256]
[1754824158034,6.03500472,4189.2,4188.7,0.55]
[1754824158358,3.671,4189.1,4188.7,0.9806]
[1754824158637,3.671,4189.1,4188.8,0.8769]
[1754824158824,5.91580472,4189.2,4189.0,0.55]
[1754824159009,3.671,4189.1,4189.0,0.70306]
[1754824159206,3.67,4189.1,4188.9,0.55]
[1754824159404,0.002,4189.2,4188.9,0.55]
[1754824159705,3.67,4189.1,4189.0,1.4271]
[1754824160130,3.672,4189.1,4189.0,1.5463]
[1754824161007,0.002,4189.1,4189.0,1.5463]
[1754824161210,0.002,4189.1,4189.0,1.70093]
[1754824162804,0.002,4189.1,4189.0,1.72480204]
[1754824164235,0.002,4189.1,4189.0,1.27830204]
[1754824164411,0.002,4189.1,4189.0,1.70093]
[1754824165204,0.002,4189.1,4189.0,0.70443]
[1754824165403,0.002,4189.1,4189.0,1.70093]
[1754824168038,0.002,4189.1,4189.0,1.72480204]
[1754824171118,0.002,4189.1,4189.0,1.70093]
[1754824172624,0.002,4189.1,4189.0,1.72480204]
[1754824172843,0.002,4189.1,4189.0,1.60560204]
[1754824173013,0.002,4189.1,4189.0,1.72480204]
[1754824173839,0.002,4189.1,4189.0,12.25772804]
[1754824174015,0.002,4189.1,4189.0,11.147856]
[1754824174218,0.002,4189.1,4189.0,13.658856]
[1754824174420,0.002,4189.1,4189.0,6.13393]
[1754824174750,0.002,4189.1,4189.0,8.899136]
[1754824174922,0.002,4189.2,4189.1,24.957991]
[1754824175115,0.002,4189.2,4189.1,22.69645868]
[1754824175458,0.002,4189.2,4189.1,10.61823068]
[1754824175950,0.002,4189.2,4189.1,13.12923068]
[1754824176119,0.002,4189.2,4189.1,26.56307868]
[1754824176438,0.002,4190.0,4189.1,25.87796968]
[1754824176638,0.002,4190.0,4189.3,7.7328]
[1754824176844,0.002,4190.0,4189.6,0.6692]
[1754824177049,0.002,4190.0,4189.6,2.12606862]
[1754824177346,0.002,4190.0,4189.6,6.00316862]
[1754824177512,0.002,4190.0,4189.6,9.6473]
[1754824177714,0.002,4190.0,4189.6,10.88701]
[1754824177942,0.002,4190.0,4189.9,0.55]
[1754824178113,0.002,4190.0,4189.9,2.00686691]
[1754824178311,0.002,4190.0,4189.9,6.00316691]
[1754824178514,0.002,4190.0,4189.9,5.9793]
[1754824178714,0.002,4190.0,4189.9,7.068001]
[1754824180748,0.002,4190.4,4190.1,1.983]
[1754824180921,0.002,4190.4,4190.3,4.983]
[1754824181118,0.002,4190.4,4190.3,5.1022]
[1754824181318,0.002,4190.4,4190.3,24.04690563]
[1754824181530,0.002,4190.4,4190.3,24.83424768]
[1754824181752,0.002,4190.4,4190.3,24.12987268]
[1754824181930,0.002,4190.4,4190.3,23.85020468]
[1754824182135,0.002,4190.4,4190.3,23.13266568]
[1754824182335,0.002,4190.4,4190.3,13.35086068]
[1754824183056,0.002,4191.1,4190.3,13.35086068]
[1754824183364,0.002,4191.1,4190.5,7.494]
[1754824183653,0.002,4191.1,4191.0,0.6692]
[1754824183853,0.002,4191.1,4191.0,15.47184165]
[1754824184038,0.002,4191.1,4191.0,12.32956]
[1754824184238,0.4624,4192.8,4191.1,3.55]
[1754824184452,0.4624,4192.8,4192.3,0.6692]
[1754824184648,0.4624,4192.8,4192.3,7.3362]
[1754824185062,0.4624,4193.2,4192.3,7.7668]
[1754824185635,0.1212,4194.2,4192.3,7.7668]
[1754824185873,0.1212,4194.2,4192.3,8.2133]
[1754824185874,0.911,4193.6,4192.3,8.2133]
[1754824186073,0.042,4192.9,4192.3,8.2133]
[1754824186372,0.042,4192.9,4192.4,6.876707]
[1754824186540,0.042,4192.9,4192.6,0.55]